bitfinex/quotes_SOLUSD_20230402
["timestamp","ask_amount","ask_price","bid_price","bid_amount"]
[1680400724362,17.0,20.958,20.945,10.0]
[1680400757910,10.0,20.957,20.944,121.266875]
[1680400758094,17.0,20.956,20.945,10.0]
[1680400763018,17.0,20.956,20.944,121.266875]
[1680400763315,17.0,20.956,20.945,10.0]
[1680400765900,17.0,20.958,20.945,10.0]
[1680400766624,10.0,20.957,20.945,10.0]
[1680400766805,17.0,20.956,20.945,10.0]
[1680400767415,21.7,20.96,20.945,10.0]
[1680400768809,27.0,20.959,20.944,19.091875]
[1680400769012,20.0,20.958,20.944,19.091875]
[1680400769213,27.0,20.957,20.944,19.091875]
[1680400769517,10.0,20.955,20.944,19.091875]
[1680400769724,20.0,20.954,20.944,19.091875]
[1680400769904,10.0,20.956,20.945,10.0]
[1680400774734,10.0,20.957,20.945,10.0]
[1680400774916,17.0,20.956,20.945,10.0]
[1680400775330,17.0,20.956,20.945,29.091338]
[1680400784734,17.0,20.956,20.945,10.0]
[1680400791540,17.0,20.956,20.944,19.09155]
[1680400793234,10.0,20.955,20.944,19.09155]
[1680400793442,17.0,20.954,20.944,19.09155]
[1680400794641,21.7,20.95,20.944,19.09155]
[1680400794939,17.0,20.949,20.944,19.09155]
[1680400797625,10.0,20.948,20.944,19.09155]
[1680400797822,17.0,20.947,20.944,19.09155]
[1680400798745,10.0,20.948,20.944,19.09155]
[1680400798945,17.0,20.946,20.944,19.09155]
[1680400799151,17.0,20.947,20.944,19.09155]
[1680400800050,17.0,20.947,20.934,10.0]
[1680400805447,17.0,20.948,20.934,10.0]
[1680400808754,17.0,20.948,20.934,29.099763]
[1680400818263,10.0,20.947,20.934,29.099763]
[1680400818466,10.0,20.945,20.934,19.099763]
[1680400818963,10.0,20.943,20.934,19.099763]
[1680400819161,17.0,20.942,20.934,19.099763]
[1680400821472,27.14,20.94,20.934,19.099763]
[1680400821653,17.0,20.939,20.934,19.099763]
[1680400824075,10.0,20.938,20.934,19.099763]
[1680400824263,17.0,20.937,20.934,19.099763]
[1680400824457,10.0,20.936,20.934,19.099763]
[1680400824662,17.0,20.935,20.934,19.099763]
[1680400826876,17.0,20.935,20.925,10.0]
[1680400827069,10.0,20.934,20.923,10.0]
[1680400827282,17.0,20.933,20.923,10.0]
[1680400828565,17.0,20.933,20.922,101.4526]
[1680400828766,17.0,20.933,20.924,10.0]
[1680400832975,17.0,20.933,20.923,10.0]
[1680400833163,17.0,20.933,20.923,9.5]
[1680400838686,17.0,20.933,20.922,101.4526]
[1680400838872,17.0,20.933,20.923,20.0]
[1680400843889,17.0,20.933,20.921,19.11111]
[1680400845172,10.0,20.932,20.921,19.11111]
[1680400845389,10.0,20.93,20.921,19.11111]
[1680400845689,17.0,20.929,20.921,19.11111]
[1680400845892,10.0,20.928,20.921,19.11111]
[1680400846401,17.0,20.927,20.921,19.11111]
[1680400846983,10.0,20.934,20.922,10.0]
[1680400848296,17.0,20.933,20.922,10.0]
[1680400853095,17.0,20.933,20.917,10.0]
[1680400853305,10.0,20.932,20.917,10.0]
[1680400853511,10.0,20.93,20.917,10.0]
[1680400853804,17.0,20.929,20.917,10.0]
[1680400854597,10.0,20.928,20.917,7.16992187]
[1680400854798,10.0,20.926,20.916,108.9546]
[1680400854994,17.0,20.925,20.916,108.9546]
[1680400860711,17.0,20.925,20.916,128.07045]
[1680400863308,17.0,20.925,20.916,19.11585]
[1680400863514,10.0,20.924,20.916,19.11585]
[1680400863718,10.0,20.922,20.916,19.11585]
[1680400864191,17.0,20.921,20.916,19.11585]
[1680400864814,17.0,20.923,20.916,19.11585]
[1680400867094,10.0,20.931,20.918,16.731]
[1680400867317,10.0,20.932,20.919,10.0]
[1680400868019,10.0,20.929,20.919,10.0]
[1680400868817,17.0,20.928,20.917,120.875]
[1680400874325,17.0,20.928,20.917,110.875]
[1680400874514,10.0,20.927,20.917,110.875]
[1680400874716,17.0,20.926,20.917,110.875]
[1680400876427,17.0,20.928,20.918,10.0]
[1680400884315,17.0,20.928,20.917,110.875]
[1680400885232,17.0,20.928,20.918,10.0]
[1680400892423,17.0,20.929,20.918,10.0]
[1680400901046,17.0,20.931,20.918,10.0]
[1680400901342,10.0,20.93,20.918,10.0]
[1680400901527,17.0,20.929,20.918,10.0]
[1680400906055,10.0,20.93,20.918,10.0]
[1680400906246,17.0,20.929,20.918,10.0]
[1680400911952,10.0,20.93,20.918,10.0]
[1680400912152,17.0,20.929,20.918,10.0]
[1680400922562,17.0,20.929,20.918,10.0]
[1680400927752,17.0,20.929,20.917,110.875]
[1680400927955,10.0,20.928,20.914,10.0]
[1680400928178,10.0,20.926,20.914,10.0]
[1680400928661,17.0,20.925,20.914,10.0]
[1680400929659,17.0,20.927,20.914,17.16893423]
[1680400930458,17.0,20.927,20.914,83.1011866]
[1680400933174,17.0,20.928,20.914,83.1011866]
[1680400933362,17.0,20.929,20.914,142.53955107]
[1680400936477,17.0,20.929,20.914,161.65715107]
[1680400940678,10.0,20.928,20.914,161.65715107]
[1680400940866,17.0,20.927,20.914,161.65715107]
[1680400944886,17.0,20.927,20.914,142.53955107]
[1680400945370,10.0,20.926,20.914,142.53955107]
[1680400945570,17.0,20.925,20.914,142.53955107]
[1680400947785,17.0,20.925,20.914,93.3422987]
[1680400948990,17.0,20.925,20.914,33.90393423]
[1680400949485,17.0,20.925,20.914,26.735]
[1680400953287,17.0,20.927,20.914,26.735]
[1680400953688,10.68308014,20.927,20.914,26.735]
[1680400956286,17.0,20.926,20.914,26.735]
[1680400956486,17.0,20.928,20.914,33.90393423]
[1680400965795,10.0,20.928,20.914,10.0]
[1680400965999,17.0,20.927,20.914,10.0]
[1680400967288,10.0,20.926,20.914,10.0]
[1680400967491,17.0,20.925,20.914,10.0]
[1680400971103,17.0,20.927,20.914,10.0]
[1680400987713,10.0,20.926,20.912,29.118399]
[1680400988016,21.72,20.92,20.913,20.0]
[1680400988406,17.0,20.919,20.913,20.0]
[1680400989906,17.0,20.919,20.912,19.118399]
[1680400993112,16.5,20.919,20.912,19.118399]
[1680400994424,21.72,20.92,20.907,10.0]
[1680400994820,21.72,20.92,20.909,10.0]
[1680400995811,17.0,20.919,20.909,10.0]
[1680400997620,21.72,20.92,20.909,10.0]
[1680400999123,10.0,20.926,20.909,135.97132884]
[1680400999322,17.0,20.925,20.911,10.0]
[1680400999521,17.0,20.925,20.913,10.0]
[1680401001727,21.57,20.93,20.913,83.1011866]
[1680401001922,21.57,20.93,20.913,75.93225237]
[1680401002317,21.57,20.93,20.915,10.0]
[1680401002523,27.2,20.93,20.915,10.0]
[1680401002818,17.0,20.928,20.915,10.0]
[1680401003020,10.0,20.927,20.915,10.0]
[1680401003220,17.0,20.926,20.915,10.0]
[1680401006229,17.0,20.928,20.915,10.0]
[1680401008437,17.0,20.929,20.915,17.16893423]
[1680401010621,10.0,20.936,20.915,17.16893423]
[1680401010837,10.0,20.936,20.918,10.0]
[1680401011938,17.0,20.931,20.918,10.0]
[1680401017749,17.0,20.932,20.918,10.0]
[1680401026751,27.01,20.93,20.915,10.0]
[1680401026941,17.0,20.929,20.914,10.0]
[1680401027140,10.0,20.928,20.914,10.0]
[1680401027342,17.0,20.927,20.914,10.0]
[1680401036660,17.0,20.928,20.914,10.0]
[1680401037957,17.0,20.929,20.914,17.16893423]
[1680401041962,17.0,20.931,20.914,17.16893423]
[1680401045963,17.0,20.931,20.914,33.90293423]
[1680401059289,10.0,20.939,20.916,10.0]
[1680401059576,10.0,20.939,20.92,10.0]
[1680401059778,10.0,20.939,20.921,20.0]
[1680401059982,10.0,20.939,20.922,10.0]
[1680401060284,10.0,20.939,20.924,10.0]
[1680401060675,17.0,20.938,20.924,10.0]
[1680401062783,10.0,20.943,20.924,10.0]
[1680401063975,10.0,20.941,20.924,10.0]
[1680401064176,17.0,20.94,20.924,10.0]
[1680401066089,117.1935,20.944,20.927,10.0]
[1680401066291,20.0,20.943,20.929,10.0]
[1680401068190,10.0,20.942,20.929,10.0]
[1680401068586,17.0,20.941,20.929,10.0]
[1680401089522,30.0,20.943,20.929,10.0]
[1680401089523,20.0,20.943,20.929,10.0]
[1680401090823,17.0,20.942,20.929,10.0]
[1680401097320,17.0,20.943,20.929,10.0]
[1680401097627,10.0,20.942,20.929,10.0]
[1680401097929,17.0,20.941,20.929,10.0]
[1680401098920,10.0,20.943,20.929,10.0]
[1680401098921,17.0,20.942,20.929,10.0]
[1680401105018,117.1935,20.944,20.931,10.0]
[1680401105225,117.1935,20.944,20.933,10.0]
[1680401105418,117.1935,20.944,20.934,20.0]
[1680401105624,10.0,20.949,20.935,10.0]
[1680401107839,10.0,20.947,20.935,10.0]
[1680401108144,17.0,20.946,20.935,10.0]
[1680401113330,17.0,20.946,20.934,30.0]
[1680401113331,10.0,20.945,20.934,20.0]
[1680401113531,17.0,20.944,20.934,20.0]
[1680401113737,17.0,20.944,20.929,10.0]
[1680401113937,30.0,20.943,20.929,10.0]
[1680401114124,27.0,20.942,20.929,10.0]
[1680401114331,10.0,20.941,20.929,10.0]
[1680401114527,17.0,20.94,20.929,10.0]
[1680401115339,10.0,20.942,20.929,10.0]
[1680401118442,10.0,20.943,20.929,10.0]
[1680401118646,115.9518,20.944,20.929,10.0]
[1680401118829,17.0,20.943,20.929,10.0]
[1680401124035,115.9518,20.944,20.931,10.0]
[1680401124235,115.9518,20.944,20.932,20.0]
[1680401124447,115.9518,20.944,20.933,10.0]
[1680401124648,115.9518,20.944,20.935,10.0]
[1680401126948,27.2,20.95,20.935,10.0]
[1680401127338,27.2,20.95,20.933,127.2139]
[1680401127534,54.4,20.95,20.934,20.0]
[1680401128444,10.0,20.947,20.935,10.0]
[1680401128648,17.0,20.946,20.935,10.0]
[1680401137159,10.0,20.947,20.935,10.0]
[1680401137461,17.0,20.946,20.935,10.0]
[1680401142554,17.0,20.948,20.935,10.0]
[1680401144255,17.0,20.949,20.935,10.0]
[1680401154780,17.0,20.949,20.937,10.0]
[1680401157597,16.9245188,20.949,20.937,10.0]
[1680401162701,10.0,20.948,20.935,10.0]
[1680401163004,10.0,20.946,20.935,10.0]
[1680401163296,17.0,20.945,20.935,10.0]
[1680401164899,17.0,20.945,20.934,30.0]
[1680401165488,27.01,20.94,20.926,26.725]
[1680401166507,17.0,20.939,20.929,10.0]
[1680401169805,10.0,20.943,20.929,10.0]
[1680401171196,17.0,20.942,20.929,10.0]
[1680401176814,10.0,20.939,20.929,10.0]
[1680401177007,17.0,20.938,20.929,10.0]
[1680401178109,17.0,20.939,20.929,10.0]
[1680401180707,10.0,20.948,20.929,10.0]
[1680401180905,10.0,20.948,20.931,10.0]
[1680401181110,10.0,20.948,20.932,37.0]
[1680401181310,10.0,20.948,20.933,10.0]
[1680401181612,10.0,20.949,20.935,10.0]
[1680401182210,17.0,20.948,20.935,10.0]
[1680401185720,17.0,20.949,20.935,10.0]
[1680401186421,17.0,20.95,20.935,10.0]
[1680401199937,10.0,20.954,20.935,10.0]
[1680401200142,37.0,20.953,20.937,10.0]
[1680401218961,17.0,20.953,20.938,20.0]
[1680401219144,119.6863,20.959,20.94,43.884]
[1680401219344,119.6863,20.959,20.942,10.0]
[1680401219549,10.0,20.959,20.944,10.0]
[1680401222458,10.0,20.957,20.944,10.0]
[1680401222669,10.0,20.957,20.946,10.0]
[1680401222849,10.0,20.959,20.946,10.0]
[1680401230170,27.2,20.96,20.946,10.0]
[1680401230471,17.0,20.959,20.946,10.0]
[1680401233669,27.2,20.96,20.946,10.0]
[1680401233870,27.2,20.96,20.948,10.0]
[1680401236882,10.0,20.958,20.946,10.0]
[1680401237175,17.0,20.957,20.946,10.0]
[1680401242578,17.0,20.958,20.946,10.0]
[1680401243085,10.0,20.963,20.948,10.0]
[1680401244387,17.0,20.962,20.948,10.0]
[1680401254098,10.0,20.961,20.948,10.0]
[1680401254281,17.0,20.96,20.948,10.0]
[1680401258180,10.0,20.959,20.946,10.0]
[1680401258391,17.0,20.958,20.946,10.0]
[1680401258591,10.0,20.957,20.946,10.0]
[1680401258978,17.0,20.956,20.946,10.0]
[1680401259992,10.0,20.959,20.946,10.0]
[1680401260290,17.0,20.958,20.946,10.0]
[1680401263677,10.0,20.959,20.946,10.0]
[1680401263878,10.0,20.963,20.946,10.0]
[1680401264085,17.0,20.961,20.946,10.0]
[1680401265091,10.0,20.963,20.946,10.0]
[1680401265281,10.0,20.963,20.948,10.0]
[1680401265680,10.0,20.965,20.95,10.0]
[1680401265874,20.0,20.963,20.95,10.0]
[1680401267174,10.0,20.965,20.951,20.0]
[1680401267492,27.2,20.97,20.953,10.0]
[1680401267790,27.2,20.97,20.955,10.0]
[1680401267791,10.0,20.969,20.955,10.0]
[1680401267992,10.0,20.969,20.956,17.0]
[1680401268175,10.0,20.969,20.957,10.0]
[1680401270374,10.0,20.972,20.957,10.0]
[1680401270582,17.0,20.971,20.957,10.0]
[1680401283296,10.0,20.97,20.957,10.0]
[1680401283503,17.0,20.969,20.957,10.0]
[1680401284700,10.0,20.968,20.956,10.0]
[1680401284900,17.0,20.967,20.955,10.0]
[1680401285080,10.0,20.966,20.955,10.0]
[1680401285279,17.0,20.965,20.955,10.0]
[1680401286503,17.0,20.965,20.953,10.0]
[1680401286682,17.0,20.965,20.955,10.0]
[1680401288199,17.0,20.965,20.953,10.0]
[1680401288498,17.0,20.965,20.954,20.0]
[1680401289006,10.0,20.964,20.953,20.0]
[1680401289184,10.0,20.962,20.953,20.0]
[1680401289585,17.0,20.961,20.953,20.0]
[1680401290003,10.0,20.962,20.953,20.0]
[1680401290202,17.0,20.961,20.953,20.0]
[1680401290500,17.0,20.961,20.946,16.709]
[1680401290697,10.0,20.959,20.946,16.709]
[1680401290886,17.0,20.958,20.946,16.709]
[1680401291086,17.0,20.958,20.948,10.0]
[1680401292789,17.0,20.958,20.947,10.0]
[1680401300011,10.0,20.959,20.947,10.0]
[1680401300312,27.2,20.96,20.947,10.0]
[1680401301212,10.0,20.964,20.947,10.0]
[1680401301417,20.0,20.963,20.949,10.0]
[1680401301712,115.4402,20.966,20.952,10.0]
[1680401302014,115.4402,20.966,20.954,10.0]
[1680401315203,10.0,20.965,20.952,10.0]
[1680401315415,27.0,20.965,20.953,20.0]
[1680401325128,115.4402,20.966,20.954,10.0]
[1680401326625,115.4402,20.966,20.954,26.702]
[1680401337343,115.4402,20.966,20.954,16.702]
[1680401337532,10.0,20.964,20.953,20.0]
[1680401337732,10.0,20.964,20.951,20.0]
[1680401343450,10.0,20.962,20.951,20.0]
[1680401344731,10.0,20.962,20.95,26.706]
[1680401344936,37.2,20.96,20.947,10.0]
[1680401354955,10.0,20.958,20.946,10.0]
[1680401355349,17.0,20.957,20.946,10.0]
[1680401362563,10.0,20.958,20.946,10.0]
[1680401362863,17.0,20.957,20.946,10.0]
[1680401365451,10.0,20.958,20.946,10.0]
[1680401367464,10.0,20.96,20.946,10.0]
[1680401369164,10.0,20.964,20.946,10.0]
[1680401369368,20.0,20.963,20.948,10.0]
[1680401369555,20.0,20.963,20.95,10.0]
[1680401370459,10.0,20.962,20.95,10.0]
[1680401372251,10.0,20.96,20.948,10.0]
[1680401372466,17.0,20.959,20.948,10.0]
[1680401374556,10.0,20.962,20.948,10.0]
[1680401374766,10.0,20.96,20.948,10.0]
[1680401380670,10.0,20.962,20.948,10.0]
[1680401384374,10.0,20.962,20.95,10.0]
[1680401387977,10.0,20.969,20.95,10.0]
[1680401388180,10.0,20.969,20.952,10.0]
[1680401388478,10.0,20.969,20.954,10.0]
[1680401390883,131.9075,20.977,20.954,10.0]
[1680401391085,10.0,20.973,20.955,17.0]
[1680401391272,10.0,20.973,20.956,10.0]
[1680401395583,10.0,20.973,20.954,10.0]
[1680401395780,10.0,20.969,20.954,10.0]
[1680401405389,10.0,20.973,20.957,10.0]
[1680401406594,10.0,20.971,20.957,10.0]
[1680401411995,10.0,20.971,20.957,10.0]
[1680401413083,10.0,20.971,20.959,10.0]
[1680401416200,10.0,20.973,20.959,10.0]
[1680401430111,10.0,20.971,20.959,10.0]
[1680401430294,17.0,20.97,20.959,10.0]
[1680401434614,17.0,20.972,20.959,10.0]
[1680401437419,10.0,20.973,20.959,10.0]
[1680401437617,10.0,20.976,20.959,10.0]
[1680401437917,10.0,20.974,20.959,10.0]
[1680401438110,20.0,20.973,20.959,10.0]
[1680401438924,17.0,20.972,20.959,10.0]
[1680401439521,20.0,20.973,20.959,10.0]
[1680401439722,20.0,20.975,20.961,10.0]
[1680401440124,10.0,20.974,20.961,10.0]
[1680401440418,20.0,20.973,20.961,10.0]
[1680401446323,17.0,20.972,20.959,10.0]
[1680401446529,10.0,20.971,20.958,10.0]
[1680401451738,27.0,20.972,20.958,10.0]
[1680401454839,17.0,20.972,20.958,10.0]
[1680401458137,10.0,20.971,20.958,10.0]
[1680401459037,17.0,20.972,20.958,10.0]
[1680401462545,20.0,20.973,20.958,10.0]
[1680401462730,20.0,20.975,20.96,10.0]
[1680401462933,80.10206155,20.982,20.96,10.0]
[1680401462934,20.0,20.976,20.961,17.0]
[1680401463135,20.0,20.976,20.962,10.0]
[1680401466749,10.0,20.975,20.962,10.0]
[1680401466949,20.0,20.974,20.962,10.0]
[1680401472553,20.0,20.975,20.962,10.0]
[1680401474053,10.0,20.976,20.963,20.0]
[1680401474244,108.6449,20.986,20.963,20.0]
[1680401474245,10.0,20.984,20.976,0.09295058]
[1680401475653,10.0,20.982,20.976,0.09295058]
[1680401478954,20.0,20.983,20.976,0.09295058]
[1680401479152,27.2,20.99,20.976,0.09295058]
[1680401479357,10.0,20.987,20.976,0.03260198]
[1680401481459,10.0,20.985,20.976,0.03260198]
[1680401481653,10.0,20.983,20.976,0.03260198]
[1680401484458,10.0,20.981,20.976,0.03260198]
[1680401484963,10.0,20.983,20.976,0.03260198]
[1680401485163,17.0,20.982,20.976,0.03260198]
[1680401489067,10.0,20.981,20.976,0.03260198]
[1680401489670,10.0,20.983,20.976,0.03260198]
[1680401489866,10.0,20.985,20.976,0.03260198]
[1680401490163,17.0,20.984,20.976,0.03260198]
[1680401490962,10.0,20.983,20.976,0.03260198]
[1680401493873,10.0,20.981,20.976,0.03260198]
[1680401494172,17.0,20.982,20.976,0.03260198]
[1680401497876,71.074,20.99,20.976,0.03260198]
[1680401498179,10.0,20.985,20.976,0.03260198]
[1680401498477,20.0,20.984,20.976,0.03260198]
[1680401499377,10.0,20.983,20.976,0.03260198]
[1680401502057,10.0,20.981,20.976,0.03260198]
[1680401502478,17.0,20.98,20.976,0.03260198]
[1680401507270,10.0,20.981,20.976,0.03260198]
[1680401507470,17.0,20.98,20.976,0.03260198]
[1680401509168,17.0,20.982,20.976,0.03260198]
[1680401509881,10.0,20.983,20.976,0.03260198]
[1680401510084,10.0,20.981,20.976,0.03260198]
[1680401510985,17.0,20.98,20.976,0.03260198]
[1680401514692,17.0,20.982,20.976,0.03260198]
[1680401515069,20.0,20.984,20.976,0.03260198]
[1680401519205,10.0,20.983,20.976,0.03260198]
[1680401522801,20.0,20.984,20.976,0.03260198]
[1680401523305,10.0,20.983,20.976,0.03260198]
[1680401525915,10.0,20.981,20.976,0.03260198]
[1680401526096,17.0,20.98,20.976,0.03260198]
[1680401526297,10.0,20.981,20.976,0.03260198]
[1680401527212,10.0,20.983,20.976,0.03260198]
[1680401533508,10.0,20.981,20.976,0.03260198]
[1680401533709,10.0,20.979,20.976,0.03260198]
[1680401535121,10.0,20.981,20.976,0.03260198]
[1680401535299,17.0,20.98,20.976,0.03260198]
[1680401540426,10.0,20.979,20.976,0.03260198]
[1680401540725,17.0,20.978,20.976,0.03260198]
[1680401541724,10.0,20.981,20.976,0.03260198]
[1680401541926,17.0,20.98,20.976,0.03260198]
[1680401542423,10.0,20.981,20.976,0.03260198]
[1680401542628,16.677,20.986,20.976,0.03260198]
[1680401544113,10.0,20.981,20.976,0.03260198]
[1680401544314,17.0,20.98,20.976,0.03260198]
[1680401548015,17.0,20.982,20.976,0.03260198]
[1680401548916,10.0,20.981,20.976,0.03260198]
[1680401549116,17.0,20.98,20.976,0.03260198]
[1680401554337,17.0,20.98,20.966,229.7539]
[1680401558834,10.0,20.981,20.966,229.7539]
[1680401559041,17.0,20.98,20.966,229.7539]
[1680401562538,38.65,20.98,20.966,229.7539]
[1680401563019,21.65,20.98,20.966,229.7539]
[1680401566841,17.0,20.979,20.966,229.7539]
[1680401581760,10.0,20.978,20.966,229.7539]
[1680401581963,17.0,20.977,20.966,229.7539]
[1680401586054,17.0,20.978,20.966,229.7539]
[1680401592560,17.0,20.979,20.966,229.7539]
[1680401597553,21.65,20.98,20.966,229.7539]
[1680401598872,21.65,20.98,20.969,10.0]
[1680401599255,21.65,20.99,20.971,10.0]
[1680401599459,20.0,20.983,20.971,10.0]
[1680401599658,20.0,20.983,20.973,10.0]
[1680401600467,20.0,20.984,20.973,10.0]
[1680401603558,17.0,20.983,20.973,10.0]
[1680401610477,21.65,20.98,20.973,10.0]
[1680401614285,21.65,20.98,20.971,10.0]
[1680401641390,17.0,20.979,20.971,10.0]
[1680401644503,21.65,20.98,20.971,10.0]
[1680401655721,21.65,20.98,20.971,10.0]
[1680401655919,21.65,20.98,20.972,20.0]
[1680401656122,16.672,20.994,20.973,27.0]
[1680401656123,21.65,20.99,20.973,27.0]
[1680401656416,21.65,20.99,20.975,10.0]
[1680401670445,10.0,20.986,20.975,10.0]
[1680401674047,10.0,20.989,20.975,10.0]
[1680401681555,10.0,20.987,20.975,10.0]
[1680401687957,17.0,20.986,20.975,10.0]
[1680401699173,10.0,20.987,20.975,10.0]
[1680401721399,21.65,20.99,20.976,17.0]
[1680401721697,21.65,20.99,20.977,10.0]
[1680401721904,21.65,20.99,20.979,10.0]
[1680401735901,27.0,20.989,20.975,10.0]
[1680401736299,10.0,20.988,20.975,10.0]
[1680401736518,17.0,20.987,20.975,10.0]
[1680401736723,10.0,20.988,20.975,10.0]
[1680401738098,17.0,20.987,20.975,10.0]
[1680401738303,10.0,20.988,20.975,10.0]
[1680401738511,17.0,20.987,20.975,10.0]
[1680401738707,21.65,20.99,20.975,10.0]
[1680401739422,21.65,20.99,20.977,10.0]
[1680401739601,21.65,20.99,20.979,10.0]
[1680401754125,21.65,20.99,20.977,10.0]
[1680401754310,27.0,20.989,20.974,10.0]
[1680401759320,10.0,20.987,20.974,10.0]
[1680401771147,113.4877,20.988,20.974,10.0]
[1680401776439,27.0,20.987,20.974,10.0]
[1680401777145,27.0,20.987,20.96,21.56]
[1680401777146,34.16893423,20.987,20.967,10.0]
[1680401777339,20.0,20.986,20.958,132.965]
[1680401777542,17.0,20.985,20.947,99.6834443]
[1680401777744,21.65,20.97,20.959,10.0]
[1680401777951,27.0,20.969,20.95,21.6]
[1680401778150,27.0,20.969,20.951,10.0]
[1680401778660,10.0,20.968,20.951,10.0]
[1680401778943,17.0,20.967,20.951,10.0]
[1680401779448,21.65,20.96,20.951,10.0]
[1680401780435,17.0,20.959,20.949,10.0]
[1680401780838,17.0,20.959,20.945,10.0]
[1680401781056,10.0,20.958,20.945,10.0]
[1680401784148,10.0,20.958,20.939,23.877]
[1680401784149,10.0,20.958,20.935,23.883]
[1680401784334,10.0,20.958,20.93,54.24]
[1680401784335,17.0,20.957,20.938,161.9738]
[1680401784539,17.0,20.957,20.939,10.0]
[1680401784838,17.0,20.957,20.94,20.0]
[1680401785040,10.0,20.956,20.94,20.0]
[1680401785247,17.0,20.955,20.94,20.0]
[1680401785446,10.0,20.954,20.94,20.0]
[1680401785648,17.0,20.953,20.94,20.0]
[1680401785851,10.0,20.952,20.94,20.0]
[1680401788754,10.0,20.954,20.941,10.0]
[1680401788956,10.0,20.956,20.942,20.0]
[1680401789147,17.0,20.955,20.943,10.0]
[1680401789450,17.0,20.955,20.944,20.0]
[1680401789855,17.0,20.955,20.947,38.163139]
[1680401791143,27.12,20.96,20.947,38.163139]
[1680401791351,27.12,20.96,20.948,10.0]
[1680401792755,17.0,20.958,20.948,10.0]
[1680401793346,17.0,20.958,20.947,38.163139]
[1680401793552,10.0,20.957,20.947,38.163139]
[1680401793751,17.0,20.956,20.947,38.163139]
[1680401794057,10.0,20.955,20.947,38.163139]
[1680401794239,10.0,20.953,20.947,38.163139]
[1680401794639,17.0,20.952,20.947,38.163139]
[1680401796857,17.0,20.954,20.947,38.163139]
[1680401799060,20.0,20.953,20.947,38.163139]
[1680401799360,17.0,20.952,20.947,38.163139]